bitfinex/quotes_SOLUSD_20250421
["timestamp","ask_amount","ask_price","bid_price","bid_amount"]
[1745222871742,123.53180857,140.21,140.2,0.063]
[1745222872054,131.66396747,140.21,140.2,0.063]
[1745222873145,80.79180857,140.21,140.2,0.063]
[1745222873470,81.79180857,140.21,140.2,0.063]
[1745222874062,131.66396747,140.21,140.2,0.063]
[1745222874662,80.674,140.19,140.18,0.063]
[1745222874860,66.16181043,140.19,140.18,0.063]
[1745222879150,44.79181043,140.19,140.18,0.063]
[1745222879767,44.64964886,140.19,140.18,0.063]
[1745222879969,44.79181043,140.19,140.18,0.063]
[1745222880668,66.16181043,140.19,140.18,0.063]
[1745222887677,44.64964886,140.19,140.18,0.063]
[1745222887853,66.01964886,140.19,140.18,0.063]
[1745222888175,66.16181043,140.19,140.18,0.063]
[1745222888562,115.54210857,140.19,140.18,0.063]
[1745222889182,115.54210857,140.19,140.15,0.063]
[1745222889183,120.89881043,140.16,140.15,0.063]
[1745222889352,40.16181043,140.16,140.15,0.063]
[1745222889552,18.79181043,140.16,140.15,0.063]
[1745222892453,18.64964886,140.16,140.15,0.063]
[1745222895881,18.64964886,140.18,140.15,0.063]
[1745222896090,6.64029814,140.19,140.15,0.063]
[1745222896381,0.14216157,140.22,140.15,0.063]
[1745222896554,18.64964886,140.19,140.15,0.063]
[1745222896980,99.44964886,140.19,140.15,0.063]
[1745222898283,18.64964886,140.17,140.15,0.063]
[1745222901790,99.44964886,140.16,140.15,0.063]
[1745222905568,99.44964886,140.16,140.15,14.123]
[1745222905775,99.59181043,140.16,140.15,14.123]
[1745222906589,120.96181043,140.16,140.15,14.123]
[1745222907285,40.16181043,140.16,140.15,14.123]
[1745222917094,40.16181043,140.16,140.15,0.063]
[1745222917276,66.01964886,140.14,140.13,0.063]
[1745222917468,66.16181043,140.14,140.13,0.063]
[1745222920596,146.96181043,140.14,140.13,0.063]
[1745222923475,125.59181043,140.14,140.13,0.063]
[1745222924215,125.44964886,140.14,140.13,0.063]
[1745222924498,99.44964886,140.14,140.13,0.063]
[1745222927298,120.96181043,140.14,140.13,0.063]
[1745222928480,99.44964886,140.14,140.13,0.063]
[1745222934091,18.64964886,140.14,140.13,0.063]
[1745222939017,18.64964886,140.14,140.13,14.123]
[1745222939179,18.64964886,140.16,140.13,14.123]
[1745222948797,21.51216157,140.18,140.13,14.123]
[1745222948798,18.64964886,140.18,140.13,14.123]
[1745222949216,18.64964886,140.17,140.13,14.123]
[1745222949687,99.44964886,140.17,140.13,14.123]
[1745222954518,18.64964886,140.15,140.13,14.123]
[1745222964223,80.8,140.14,140.13,14.123]
[1745222964421,120.96181043,140.14,140.13,0.063]
[1745222964831,40.16181043,140.14,140.13,0.063]
[1745222968932,18.79181043,140.14,140.13,0.063]
[1745222974413,18.64964886,140.14,140.13,0.063]
[1745222975516,40.01964886,140.14,140.13,0.063]
[1745222975837,18.64964886,140.14,140.13,0.063]
[1745222987640,18.79181043,140.14,140.13,0.063]
[1745222992931,40.16181043,140.14,140.13,0.063]
[1745222996534,46.80210857,140.14,140.13,0.063]
[1745223000551,25.43210857,140.14,140.13,0.063]
[1745223001750,25.289947,140.14,140.13,0.063]
[1745223005153,18.64964886,140.14,140.13,0.063]
[1745223012067,6.64029814,140.18,140.13,0.063]
[1745223012274,44.64964886,140.17,140.13,0.063]
[1745223016770,18.64964886,140.15,140.13,0.063]
[1745223016960,18.64964886,140.16,140.13,0.063]
[1745223017671,0.14216157,140.15,140.13,0.063]
[1745223024791,18.64964886,140.16,140.13,0.063]
[1745223027065,18.64964886,140.14,140.13,0.063]
[1745223031295,18.64964886,140.14,140.13,14.123]
[1745223031674,18.79181043,140.14,140.13,0.063]
[1745223031887,40.17181043,140.14,140.13,0.063]
[1745223033594,47.30753185,140.14,140.13,0.063]
[1745223033796,62.4897972,140.14,140.13,0.063]
[1745223033976,62.4897972,140.14,140.11,0.063]
[1745223033977,66.02964886,140.12,140.11,0.063]
[1745223037693,44.64964886,140.12,140.11,0.063]
[1745223039781,18.64964886,140.12,140.11,0.063]
[1745223040199,44.64964886,140.12,140.11,0.063]
[1745223040579,18.64964886,140.12,140.11,0.063]
[1745223048502,18.64964886,140.12,140.11,14.103]
[1745223051510,18.64964886,140.13,140.11,14.103]
[1745223052617,18.79181043,140.17,140.11,14.103]
[1745223053115,18.64964886,140.15,140.11,14.103]
[1745223057313,99.44964886,140.15,140.11,14.103]
[1745223069626,80.8,140.15,140.12,1.5199]
[1745223069801,80.8,140.16,140.12,1.5199]
[1745223089735,80.8,140.16,140.13,14.04]
[1745223094445,18.64964886,140.15,140.14,14.04]
[1745223094644,18.79181043,140.16,140.14,14.04]
[1745223103352,40.17181043,140.16,140.14,14.04]
[1745223103650,1.6031,140.15,140.14,14.04]
[1745223104552,26.0,140.12,140.11,14.04]
[1745223104750,44.64964886,140.12,140.11,14.04]
[1745223108250,44.64964886,140.12,140.07,0.063]
[1745223108251,18.79181043,140.11,140.07,0.063]
[1745223108456,18.64964886,140.09,140.08,14.04]
[1745223109546,80.8,140.1,140.08,14.04]
[1745223110045,99.44964886,140.1,140.09,14.04]
[1745223118457,99.59181043,140.1,140.09,14.04]
[1745223118840,18.79181043,140.1,140.09,14.04]
[1745223120755,99.59181043,140.09,140.07,14.103]
[1745223123952,99.59181043,140.08,140.07,0.063]
[1745223124148,125.35664886,140.06,140.05,0.063]
[1745223127558,44.64964886,140.06,140.05,0.063]
[1745223128861,66.17181043,140.06,140.05,0.063]
[1745223133464,125.35664886,140.04,140.03,14.07]
[1745223133645,44.64964886,140.04,140.03,14.07]
[1745223135362,44.64964886,140.02,140.01,0.03]
[1745223135544,0.14216157,140.0,139.98,14.07]
[1745223140767,18.79181043,140.0,139.98,14.07]
[1745223142161,44.79181043,140.0,139.98,14.07]
[1745223142462,18.79181043,140.0,139.98,14.07]
[1745223142967,44.79181043,140.0,139.98,14.07]
[1745223143154,18.79181043,140.0,139.98,14.07]
[1745223143752,99.38964886,139.98,139.97,0.03]
[1745223143952,18.64964886,139.98,139.97,0.03]
[1745223144271,24.10612049,139.98,139.97,0.03]
[1745223147968,45.64964886,139.94,139.9,0.03]
[1745223148157,18.64964886,139.92,139.9,0.03]
[1745223148363,44.64964886,139.91,139.9,0.03]
[1745223153154,44.79181043,139.91,139.9,0.03]
[1745223154283,18.79181043,139.91,139.9,0.03]
[1745223155157,18.64964886,139.86,139.85,0.03]
[1745223163682,18.79181043,139.86,139.85,0.03]
[1745223168196,40.17181043,139.86,139.84,0.03]
[1745223168365,0.14216157,139.85,139.84,0.03]
[1745223168797,0.14216157,139.86,139.84,0.03]
[1745223169091,18.79181043,139.86,139.84,0.03]
[1745223176399,0.14216157,139.86,139.84,0.03]
[1745223177778,44.64964886,139.85,139.84,0.03]
[1745223179301,44.79181043,139.85,139.84,0.03]
[1745223180100,44.64964886,139.85,139.84,0.03]
[1745223181175,44.79181043,139.85,139.84,0.03]
[1745223185691,66.17181043,139.85,139.84,0.03]
[1745223186407,44.79181043,139.85,139.84,0.03]
[1745223187396,44.64964886,139.85,139.84,0.03]
[1745223200629,18.64964886,139.85,139.84,0.03]
[1745223202220,18.64964886,139.89,139.84,0.03]
[1745223202408,44.64964886,139.89,139.84,0.03]
[1745223204224,0.14216157,139.88,139.84,0.03]
[1745223205225,44.79181043,139.85,139.84,0.03]
[1745223208308,44.64964886,139.85,139.84,0.03]
[1745223211526,44.64964886,139.85,139.84,14.09]
[1745223213156,18.64964886,139.85,139.84,14.09]
[1745223219331,26.0,139.87,139.84,14.09]
[1745223219640,18.64964886,139.86,139.84,14.09]
[1745223220538,7.31069363,139.88,139.84,14.09]
[1745223220835,18.64964886,139.87,139.84,14.09]
[1745223232633,18.64964886,139.88,139.84,14.09]
[1745223233247,80.8,139.89,139.84,14.09]
[1745223243255,80.8,139.89,139.85,14.04]
[1745223246967,77.6839986,139.89,139.85,14.04]
[1745223248748,18.64964886,139.88,139.85,14.04]
[1745223252966,77.6839986,139.89,139.85,14.04]
[1745223254658,96.33364746,139.88,139.85,14.04]
[1745223259472,77.6839986,139.87,139.85,14.04]
[1745223263460,18.64964886,139.86,139.85,14.04]
[1745223264473,77.6839986,139.87,139.85,14.04]
[1745223280063,18.64964886,139.86,139.85,14.04]
[1745223284380,18.64964886,139.86,139.84,0.03]
[1745223284585,18.64964886,139.86,139.85,14.04]
[1745223293766,77.6839986,139.87,139.85,14.04]
[1745223302195,18.64964886,139.86,139.85,14.04]
[1745223304396,18.79181043,139.86,139.85,14.04]
[1745223304571,44.79181043,139.86,139.85,14.04]
[1745223305277,44.79181043,139.86,139.84,0.03]
[1745223306574,44.64964886,139.86,139.84,0.03]
[1745223309286,80.8,139.85,139.84,0.03]
[1745223310904,99.44964886,139.85,139.84,0.03]
[1745223315415,99.59181043,139.85,139.84,0.03]
[1745223315800,18.79181043,139.85,139.84,0.03]
[1745223318096,18.64964886,139.85,139.84,0.03]
[1745223323097,18.79181043,139.85,139.84,0.03]
[1745223326421,97.45302247,139.85,139.84,0.03]
[1745223328525,90.30250406,139.85,139.84,0.03]
[1745223329125,18.64964886,139.81,139.8,14.04]
[1745223333020,26.0,139.81,139.8,14.04]
[1745223335926,44.64964886,139.83,139.8,14.04]
[1745223336320,26.0,139.81,139.8,14.04]
[1745223336505,44.64964886,139.81,139.8,14.04]
[1745223337540,44.79181043,139.81,139.8,14.04]
[1745223349145,18.64964886,139.8,139.79,0.03]
[1745223349736,18.79181043,139.8,139.79,0.03]
[1745223350948,18.64964886,139.8,139.79,0.03]
[1745223351539,99.44964886,139.8,139.79,0.03]
[1745223356132,99.44964886,139.8,139.79,14.07]
[1745223357148,80.8,139.8,139.79,14.07]
[1745223371366,80.8,139.85,139.79,14.07]
[1745223371771,26.0,139.84,139.79,14.07]
[1745223373671,18.64964886,139.82,139.79,14.07]
[1745223376066,80.8,139.81,139.79,14.07]
[1745223377649,18.64964886,139.8,139.79,14.07]
[1745223378068,44.64964886,139.8,139.79,14.07]
[1745223378566,44.79181043,139.8,139.79,14.07]
[1745223379068,44.64964886,139.8,139.79,14.07]
[1745223381451,44.64964886,139.82,139.79,14.07]
[1745223385083,44.64964886,139.8,139.79,14.07]
[1745223393070,44.79181043,139.8,139.79,14.07]
[1745223394807,110.64221043,139.8,139.77,1.172511]
[1745223394964,46.35221043,139.75,139.74,0.03]
[1745223395291,0.14216157,139.69,139.65,14.07]
[1745223395480,18.64964886,139.67,139.65,14.07]
[1745223396169,5.28181038,139.66,139.65,14.07]
[1745223396366,86.08181038,139.66,139.65,14.07]
[1745223396667,5.28181038,139.66,139.65,14.07]
[1745223397168,23.93145924,139.69,139.65,14.07]
[1745223397690,5.28181038,139.69,139.65,14.07]
[1745223397891,5.28181038,139.69,139.65,22.0197]
[1745223398266,18.64964886,139.73,139.65,22.0197]
[1745223399272,80.8,139.74,139.66,0.14216157]
[1745223399694,80.8,139.74,139.66,1.14216157]
[1745223400182,80.8,139.78,139.69,0.14216157]
[1745223400490,18.64964886,139.77,139.7,14.04]
[1745223400667,80.8,139.78,139.7,14.04]
[1745223400867,18.64964886,139.77,139.7,14.04]
[1745223417610,26.0,139.76,139.7,14.04]
[1745223421416,26.0,139.74,139.7,14.04]
[1745223421620,25.988632,139.74,139.7,14.04]
[1745223422521,80.8,139.75,139.7,14.04]
[1745223431517,80.8,139.75,139.71,14.1]
[1745223435115,99.44964886,139.79,139.71,14.1]
[1745223435426,99.44964886,139.79,139.71,41.6123]
[1745223435632,80.8,139.79,139.72,0.14216157]
[1745223437897,80.8,139.79,139.73,245.08]
[1745223439505,80.8,139.79,139.71,35.0395]
[1745223439713,81.8,139.79,139.69,18.64964886]
[1745223440224,80.8,139.79,139.69,18.64964886]
[1745223440427,81.8,139.79,139.69,18.64964886]
[1745223440811,80.8,139.79,139.69,18.64964886]
[1745223441116,81.8,139.79,139.69,18.64964886]
[1745223441317,81.8,139.79,139.69,99.34964886]
[1745223441633,80.8,139.79,139.69,99.34964886]
[1745223445215,80.8,139.79,139.7,245.04]
[1745223445420,80.8,139.79,139.7,259.14]
[1745223445611,80.8,139.79,139.73,26.0]
[1745223446006,0.063,139.81,139.74,44.79181043]
[1745223446206,0.063,139.81,139.75,14.1]
[1745223446406,1.063,139.81,139.75,14.1]
[1745223447319,0.063,139.81,139.75,14.1]
[1745223447524,1.063,139.81,139.75,14.1]
[1745223449425,1.0,139.8,139.75,14.1]
[1745223450835,1.063,139.81,139.75,14.1]
[1745223451011,1.0,139.8,139.75,14.1]
[1745223453352,7.0647,139.8,139.75,14.1]
[1745223455926,7.0647,139.8,139.7,330.0525]
[1745223455927,2.6095,139.78,139.76,14.1]
[1745223460240,1.6095,139.78,139.76,14.1]
[1745223460420,2.6095,139.78,139.76,14.1]
[1745223464646,81.8,139.79,139.76,14.1]
[1745223465743,80.8,139.79,139.76,14.1]
[1745223465928,81.8,139.79,139.76,14.1]
[1745223466133,80.8,139.79,139.76,14.1]
[1745223466334,81.8,139.79,139.76,14.1]
[1745223466647,80.8,139.79,139.76,14.1]
[1745223466833,81.8,139.79,139.76,14.1]
[1745223467446,80.8,139.79,139.76,14.1]
[1745223467640,81.8,139.79,139.76,14.1]
[1745223468252,80.8,139.79,139.76,14.1]
[1745223469048,81.8,139.79,139.76,14.1]
[1745223471336,80.8,139.79,139.76,14.1]
[1745223471543,81.8,139.79,139.76,14.1]
[1745223475664,80.8,139.79,139.76,14.1]
[1745223476050,81.8,139.79,139.76,14.1]
[1745223477964,80.8,139.79,139.76,14.1]
[1745223478265,81.8,139.79,139.76,14.1]
[1745223479068,80.8,139.79,139.76,14.1]
[1745223479358,81.8,139.79,139.76,14.1]
[1745223479563,80.8,139.79,139.76,14.1]
[1745223481369,80.7999999,139.79,139.76,14.1]
[1745223484468,87.0831999,139.79,139.76,14.1]
[1745223494165,88.0831999,139.79,139.76,14.1]
[1745223496776,87.0831999,139.79,139.76,14.1]
[1745223496979,88.0831999,139.79,139.76,14.1]
[1745223497477,87.0831999,139.79,139.76,14.1]
[1745223497780,88.0831999,139.79,139.76,14.1]
[1745223500080,87.0831999,139.79,139.76,14.1]
[1745223500284,88.0831999,139.79,139.76,14.1]
[1745223501582,87.0831999,139.79,139.76,14.1]
[1745223501878,88.0831999,139.79,139.76,14.1]
[1745223503283,87.0831999,139.79,139.76,14.1]
[1745223503457,81.7999999,139.79,139.76,14.1]
[1745223504264,80.7999999,139.79,139.76,14.1]
[1745223508682,0.063,139.81,139.76,14.1]
[1745223515889,0.063,139.81,139.79,26.0]
[1745223517270,0.063,139.81,139.8,26.0]
[1745223517474,0.063,139.81,139.79,27.3254]
[1745223518080,0.063,139.81,139.8,26.14216157]
[1745223523683,0.063,139.81,139.8,26.0]
[1745223526490,0.063,139.81,139.8,270.92]
[1745223531774,0.063,139.81,139.8,271.06216157]
[1745223534101,0.063,139.81,139.8,289.71181043]
[1745223536097,0.063,139.81,139.8,285.10216157]
[1745223536306,0.063,139.83,139.8,284.96]
[1745223541909,0.063,139.83,139.81,0.14216157]
[1745223544414,0.063,139.83,139.8,284.96]
[1745223545198,0.063,139.83,139.81,0.14216157]
[1745223547102,0.063,139.83,139.8,284.96]
[1745223547695,0.063,139.85,139.81,0.14216157]
[1745223551820,0.063,139.87,139.84,26.0]
[1745223552003,0.063,139.87,139.85,14.02]
[1745223555221,0.063,139.89,139.88,26.0]
[1745223559705,0.063,139.89,139.88,26.14216157]
[1745223559903,0.063,139.89,139.88,44.79181043]
[1745223560537,0.063,139.91,139.89,0.14216157]
[1745223560836,0.063,139.91,139.9,14.02]
[1745223561330,0.063,139.91,139.89,26.0]
[1745223561630,0.063,139.91,139.9,14.02]
[1745223564221,0.063,139.91,139.89,26.0]
[1745223564429,0.063,139.91,139.9,14.02]
[1745223565628,0.063,139.91,139.89,26.0]
[1745223565921,0.063,139.91,139.9,14.02]
[1745223566631,0.05448959,139.92,139.9,14.02]
[1745223566934,0.05448959,139.92,139.91,244.76]
[1745223567229,0.05448959,139.92,139.91,258.78]
[1745223568436,0.05448959,139.92,139.91,244.76]
[1745223568722,0.05448959,139.92,139.91,258.78]
[1745223569525,0.05448959,139.92,139.91,244.76]
[1745223569727,0.05448959,139.92,139.91,258.78]
[1745223599146,0.05448959,139.92,139.91,244.76]
[1745223599450,0.05448959,139.92,139.91,258.78]
[1745223603657,0.063,139.94,139.91,258.78]
[1745223607742,0.063,139.94,139.92,26.0]
[1745223626986,0.063,139.97,139.95,26.0]
[1745223627184,0.063,139.99,139.96,14.02]
[1745223628077,0.04584673,139.99,139.98,26.0]
[1745223630683,0.063,140.0,139.99,26.0]
[1745223634375,0.063,140.0,139.98,26.0]
[1745223634589,0.063,140.0,139.99,14.0]
[1745223637884,0.063,140.0,139.99,258.6]
[1745223645707,0.063,140.0,139.99,244.6]
[1745223645896,8.0391,140.0,139.99,258.6]
[1745223646097,27.68874886,140.0,139.99,14.0]
[1745223646307,27.68874886,140.0,139.99,12.3334]
[1745223646682,9.0391,140.0,139.99,12.3334]
[1745223650716,1.0,139.99,139.97,244.56]
[1745223650907,1.0,139.99,139.98,14.0]
[1745223651405,9.0391,140.0,139.98,14.0]
[1745223651609,1.0,139.99,139.98,14.0]
[1745223655423,9.0391,140.0,139.98,14.0]
[1745223657328,1.0,139.99,139.98,14.0]
[1745223658316,19.64964886,139.99,139.98,14.0]
[1745223658696,1.0,139.99,139.98,14.0]
[1745223658898,9.0391,140.0,139.98,14.0]
[1745223659097,1.0,139.99,139.98,14.0]
[1745223659301,8.0391,140.0,139.98,14.0]
[1745223659512,7.4768,140.0,139.98,14.0]
[1745223660615,0.063,140.0,139.98,14.0]
[1745223664313,0.063,140.0,139.98,15.605]
[1745223664512,0.063,140.0,139.99,0.14216157]
[1745223668630,0.063,140.0,139.99,18.79181043]
[1745223673036,0.063,140.0,139.99,32.79181043]
[1745223673241,0.063,140.0,139.99,18.79181043]
[1745223673552,0.063,140.0,139.99,32.79181043]
[1745223674341,0.063,140.01,139.99,32.79181043]
[1745223678817,0.063,140.01,140.0,244.66216157]
[1745223680129,0.063,140.01,140.0,258.52]
[1745223680457,0.00322824,140.01,140.0,258.52]
[1745223684454,0.00322824,140.01,140.0,258.66216157]
[1745223685033,0.00322824,140.01,140.0,277.31181043]
[1745223685228,0.063,140.03,140.02,0.14216157]
[1745223685442,0.063,140.03,140.02,44.79181043]
[1745223685828,0.063,140.03,140.02,18.79181043]
[1745223687160,0.063,140.03,140.02,46.41281043]
[1745223687343,0.063,140.03,140.02,20.41281043]
[1745223687536,0.063,140.05,140.04,44.64964886]
[1745223687749,0.063,140.06,140.05,44.64964886]
[1745223688051,0.063,140.06,140.05,58.64964886]
[1745223689262,0.063,140.06,140.05,58.79181043]
[1745223690351,0.063,140.06,140.05,139.49181043]
[1745223692761,0.063,140.06,140.05,125.49181043]
[1745223693262,0.063,140.06,140.05,139.49181043]
[1745223693465,0.063,140.06,140.05,125.49181043]
[1745223693857,0.063,140.06,140.05,139.49181043]
[1745223695762,0.063,140.06,140.05,125.49181043]
[1745223695964,0.063,140.06,140.05,26.0]
[1745223696172,0.063,140.06,140.05,40.0]
[1745223696354,0.063,140.06,140.05,40.14216157]
[1745223696664,0.063,140.06,140.05,58.64964886]
[1745223696965,0.063,140.06,140.05,58.79181043]
[1745223701846,0.063,140.06,140.05,40.14216157]
[1745223706672,0.03,140.12,140.09,26.0]
[1745223706970,0.03,140.12,140.1,13.98]
[1745223707174,0.03,140.12,140.11,244.42]
[1745223708957,0.03,140.12,140.11,270.42]
[1745223709147,0.03,140.12,140.11,284.4]
[1745223711971,0.03,140.12,140.11,284.54216157]
[1745223713685,6.4834,140.16,140.13,26.0]
[1745223715677,6.4834,140.16,140.14,13.98]
[1745223719380,6.4834,140.16,140.15,244.34]
[1745223722787,0.063,140.16,140.15,244.34]
[1745223738637,0.063,140.16,140.15,258.32]
[1745223743909,0.063,140.16,140.15,258.32]
[1745223759425,0.063,140.16,140.15,284.32]
[1745223763224,0.03,140.21,140.17,26.0]
[1745223763438,1.03,140.21,140.17,26.0]
[1745223763740,0.03,140.21,140.18,26.0]
[1745223764446,0.03,140.22,140.19,26.0]
[1745223764742,0.03,140.22,140.2,13.98]
[1745223766617,0.03,140.22,140.21,0.14216157]
[1745223768046,1.03,140.28,140.23,26.0]
[1745223768222,1.0,140.27,140.23,26.0]
[1745223768625,0.03,140.28,140.23,26.0]
[1745223769146,8.1332,140.27,140.24,13.98]
[1745223769326,8.1332,140.27,140.25,13.98]
[1745223772357,6.5308,140.27,140.26,244.22]
[1745223772646,0.03,140.28,140.26,244.22]
[1745223775135,0.03,140.28,140.27,13.98]
[1745223780259,0.03,140.28,140.26,244.22]
[1745223780466,0.03,140.28,140.27,13.96]
[1745223781976,0.03,140.28,140.26,244.22]
[1745223782143,18.64964886,140.27,140.26,244.02777176]
[1745223782339,25.02311043,140.27,140.26,244.02777176]
[1745223782572,25.02311043,140.27,140.26,235.69457176]
[1745223785476,46.43311043,140.27,140.26,235.69457176]
[1745223785685,25.02311043,140.27,140.26,235.69457176]
[1745223790587,24.88094886,140.27,140.26,235.69457176]
[1745223791349,0.03,140.28,140.25,13.96]
[1745223791750,0.17216157,140.28,140.25,13.96]
[1745223792479,0.03,140.28,140.25,13.96]
[1745223807994,18.4429926,140.28,140.25,13.96]
[1745223810669,80.94216157,140.27,140.23,245.7541]
[1745223810869,18.64964886,140.25,140.24,14.02]
[1745223811694,18.64964886,140.25,140.23,244.18]
[1745223812098,18.64964886,140.25,140.24,14.02]
[1745223814302,18.79181043,140.25,140.24,14.02]
[1745223814476,99.44964886,140.24,140.23,244.18]
[1745223814670,99.44964886,140.24,140.23,258.2]
[1745223814893,99.59181043,140.24,140.23,258.2]
[1745223815194,127.06711043,140.24,140.23,14.02]
[1745223815405,18.79181043,140.23,140.21,14.02]
[1745223815598,121.00181043,140.23,140.21,14.02]
[1745223819607,99.59181043,140.22,140.21,14.02]
[1745223824702,99.44964886,140.22,140.21,14.02]
[1745223824911,80.8,140.27,140.21,14.02]
[1745223825211,80.8,140.27,140.21,15.5933]
[1745223825581,18.79181043,140.26,140.21,15.5933]
[1745223825779,0.14216157,140.24,140.21,14.02]
[1745223831612,18.64964886,140.22,140.21,14.02]
[1745223831908,18.64964886,140.22,140.21,13.98]
[1745223832094,18.79181043,140.22,140.21,13.98]
[1745223832291,0.14216157,140.22,140.21,13.98]
[1745223834619,0.14216157,140.21,140.19,14.043]
[1745223835298,44.79181043,140.2,140.19,14.043]
[1745223836121,66.20181043,140.2,140.19,14.043]
[1745223837008,66.20181043,140.2,140.19,0.063]
[1745223837399,40.20181043,140.2,140.19,0.063]
[1745223840689,66.20181043,140.2,140.19,0.063]
[1745223855714,44.79181043,140.2,140.19,0.063]
[1745223856025,18.79181043,140.2,140.19,0.063]
[1745223856522,40.20181043,140.2,140.19,0.063]
[1745223858921,18.64964886,140.2,140.19,0.063]
[1745223859297,18.79181043,140.2,140.19,0.063]
[1745223859503,18.64964886,140.2,140.19,0.063]
[1745223859705,18.64964886,140.25,140.19,0.063]
[1745223859906,0.14216157,140.22,140.19,0.063]
[1745223860104,18.64964886,140.23,140.19,0.063]
[1745223860428,0.14216157,140.22,140.19,0.063]
[1745223861625,18.64964886,140.23,140.2,1.6241]
[1745223866522,80.8,140.24,140.2,1.6241]
[1745223868627,80.8,140.24,140.2,245.9441]
[1745223873934,80.8,140.29,140.21,26.0]
[1745223874140,18.64964886,140.28,140.21,26.0]
[1745223884063,18.64964886,140.28,140.2,245.9441]
[1745223885560,18.64964886,140.28,140.21,13.98]
[1745223890366,18.64964886,140.28,140.22,244.2]
[1745223890666,18.64964886,140.26,140.22,244.2]
[1745223891249,18.64964886,140.26,140.23,13.96]
[1745223891570,80.8,140.27,140.23,13.96]
[1745223895970,80.8,140.27,140.24,13.96]
[1745223909201,18.64964886,140.26,140.24,13.96]
[1745223909500,80.8,140.27,140.24,13.96]
[1745223915216,80.8,140.27,140.25,13.96]
[1745223915507,80.8,140.3,140.25,13.96]
[1745223919409,18.64964886,140.29,140.25,13.96]
[1745223924900,80.8,140.3,140.25,13.96]
[1745223925108,80.8,140.3,140.25,15.5613]
[1745223926814,0.03,140.31,140.25,15.5613]
[1745223929218,0.03,140.31,140.25,41.5613]
[1745223930632,0.03,140.31,140.26,244.16]
[1745223933422,0.03,140.31,140.27,7.685]
[1745223933730,0.03,140.31,140.27,11.31114694]
[1745223934106,0.03,140.31,140.27,7.685]
[1745223935428,0.02999459,140.31,140.27,7.685]
[1745223936001,0.02999459,140.31,140.27,1.6013]
[1745223942441,0.02999459,140.31,140.28,13.96]
[1745223951921,0.17215616,140.31,140.28,13.96]
[1745223953637,0.02999459,140.31,140.28,13.96]
[1745223957329,0.02999459,140.31,140.28,15.4937]
[1745223958542,0.02999459,140.31,140.3,26.0]
[1745223962043,0.02999459,140.31,140.28,15.4937]
[1745223962250,0.02999459,140.31,140.28,41.4937]
[1745223966121,0.02999459,140.31,140.3,26.0]
[1745223968046,18.67964886,140.37,140.3,26.0]
[1745223968245,16.23964345,140.37,140.29,26.0]
[1745223968945,106.8,140.38,140.29,26.0]
[1745223969325,80.8,140.38,140.29,26.0]
[1745223971052,80.8,140.38,140.3,244.06]
[1745223972141,0.03,140.37,140.3,244.06]
[1745223980359,0.03,140.37,140.31,13.96]
[1745223986134,18.67964886,140.37,140.31,13.96]